[Event "Live Chess"]
[Site "Chess.com"]
[Date "2023.05.21"]
[Round "-"]
[White "PrinceCharming_1"]
[Black "KeithArkell"]
[Result "0-1"]
[WhiteElo "1619"]
[BlackElo "2511"]
[TimeControl "300"]
[EndTime "2:50:56 PDT"]
[Termination "KeithArkell won by checkmate"]

1. e4 {[%clk 0:04:58.8]} 1... c6 {[%clk 0:04:59.1]} 2. d4 {[%clk 0:04:57.7]}
2... d5 {[%clk 0:04:58.5]} 3. e5 {[%clk 0:04:56.9]} 3... c5 {[%clk 0:04:57.2]}
4. dxc5 {[%clk 0:04:55.3]} 4... Nc6 {[%clk 0:04:56.4]} 5. f4 {[%clk 0:04:55.2]}
5... e6 {[%clk 0:04:53.6]} 6. Be3 {[%clk 0:04:47.1]} 6... d4 {[%clk 0:04:53]} 7.
Bf2 {[%clk 0:04:43.3]} 7... Bxc5 {[%clk 0:04:52]} 8. Nf3 {[%clk 0:04:42.3]} 8...
Nge7 {[%clk 0:04:51.2]} 9. Bb5 {[%clk 0:04:41.2]} 9... Nf5 {[%clk 0:04:49.1]}
10. O-O {[%clk 0:04:38.7]} 10... O-O {[%clk 0:04:44.4]} 11. Re1 {[%clk
0:04:37.3]} 11... Ne3 {[%clk 0:04:42.3]} 12. Bxe3 {[%clk 0:04:36.3]} 12... dxe3
{[%clk 0:04:41.7]} 13. Qe2 {[%clk 0:04:34.5]} 13... Bd7 {[%clk 0:04:36.7]} 14.
Nc3 {[%clk 0:04:32.7]} 14... a6 {[%clk 0:04:33.1]} 15. Bd3 {[%clk 0:04:29.6]}
15... Nd4 {[%clk 0:04:30.6]} 16. Nxd4 {[%clk 0:04:28]} 16... Bxd4 {[%clk
0:04:30]} 17. Ne4 {[%clk 0:04:27.9]} 17... Bc6 {[%clk 0:04:28.3]} 18. c3 {[%clk
0:04:26.3]} 18... Ba7 {[%clk 0:04:26.5]} 19. Nd6 {[%clk 0:04:25.5]} 19... f5
{[%clk 0:04:11.6]} 20. Rad1 {[%clk 0:04:15.2]} 20... Qe7 {[%clk 0:04:09.7]} 21.
Bc4 {[%clk 0:04:12.9]} 21... Rad8 {[%clk 0:04:04.8]} 22. a3 {[%clk 0:04:07.2]}
22... b5 {[%clk 0:04:01.9]} 23. Bb3 {[%clk 0:04:06]} 23... Bc5 {[%clk
0:03:58.5]} 24. Rd3 {[%clk 0:03:40.5]} 24... Be4 {[%clk 0:03:48.9]} 25. Rdd1
{[%clk 0:03:38]} 25... Rd7 {[%clk 0:03:43.2]} 26. h3 {[%clk 0:03:32.7]} 26...
Ba8 {[%clk 0:03:38.4]} 27. Kh1 {[%clk 0:03:27.7]} 27... g5 {[%clk 0:03:35.2]}
28. fxg5 {[%clk 0:03:21.2]} 28... f4 {[%clk 0:03:34.5]} 29. Qh5 {[%clk
0:03:08.3]} 29... f3 {[%clk 0:03:25.7]} 30. Rxe3 {[%clk 0:02:22.7]} 30... fxg2+
{[%clk 0:03:19.4]} 31. Kh2 {[%clk 0:02:20.2]} 31... Bxe3 {[%clk 0:03:18]} 32.
Bc2 {[%clk 0:02:08.8]} 32... Rxd6 {[%clk 0:03:03.2]} 33. exd6 {[%clk 0:02:03.5]}
33... Qxd6+ {[%clk 0:02:58.1]} 34. Rxd6 {[%clk 0:02:00]} 34... g1=Q# {[%clk
0:02:57.1]} 0-1

[Event "Live Chess"]
[Site "Chess.com"]
[Date "2023.05.21"]
[Round "-"]
[White "BostonStrangler"]
[Black "Greenbecker"]
[Result "1-0"]
[WhiteElo "2069"]
[BlackElo "1643"]
[TimeControl "300"]
[EndTime "2:51:04 PDT"]
[Termination "BostonStrangler won by resignation"]

1. Nf3 {[%clk 0:04:57.5]} 1... d5 {[%clk 0:04:58.4]} 2. c4 {[%clk 0:04:56.2]}
2... Nf6 {[%clk 0:04:57.8]} 3. cxd5 {[%clk 0:04:55]} 3... Nxd5 {[%clk
0:04:56.1]} 4. g3 {[%clk 0:04:53.6]} 4... Bf5 {[%clk 0:04:53.1]} 5. Bg2 {[%clk
0:04:52.9]} 5... e6 {[%clk 0:04:51.9]} 6. e4 {[%clk 0:04:47.8]} 6... Bxe4 {[%clk
0:04:48.4]} 7. Qa4+ {[%clk 0:04:46.7]} 7... Nc6 {[%clk 0:04:40.4]} 8. Qxe4
{[%clk 0:04:45.2]} 8... Bc5 {[%clk 0:04:31.9]} 9. O-O {[%clk 0:04:41.5]} 9...
O-O {[%clk 0:04:29.7]} 10. d4 {[%clk 0:04:40.4]} 10... Nf6 {[%clk 0:04:25.4]}
11. Qh4 {[%clk 0:04:35.6]} 11... Nxd4 {[%clk 0:04:22.4]} 12. Nxd4 {[%clk
0:04:31.9]} 12... Bxd4 {[%clk 0:04:21.6]} 13. Nc3 {[%clk 0:04:30.8]} 13... Bxc3
{[%clk 0:04:13.2]} 14. bxc3 {[%clk 0:04:29.3]} 14... c6 {[%clk 0:04:12.5]} 15.
Bg5 {[%clk 0:04:27.2]} 15... h6 {[%clk 0:04:11]} 16. Bxf6 {[%clk 0:04:26.3]}
16... Qxf6 {[%clk 0:04:10.2]} 17. Qxf6 {[%clk 0:04:24.9]} 17... gxf6 {[%clk
0:04:09.5]} 18. Rab1 {[%clk 0:04:24.4]} 18... Rab8 {[%clk 0:04:01.9]} 19. Rfd1
{[%clk 0:04:23]} 19... Rfe8 {[%clk 0:03:57]} 20. Rd7 {[%clk 0:04:21.4]} 20...
Red8 {[%clk 0:03:49.9]} 21. Rxd8+ {[%clk 0:04:17.1]} 21... Rxd8 {[%clk
0:03:48.6]} 22. Rxb7 {[%clk 0:04:17]} 22... Rd1+ {[%clk 0:03:47.6]} 23. Bf1
{[%clk 0:04:16.5]} 23... Rc1 {[%clk 0:03:43]} 24. Rxa7 {[%clk 0:04:14.2]} 24...
Rxc3 {[%clk 0:03:42]} 25. Kg2 {[%clk 0:04:13.4]} 25... Kg7 {[%clk 0:03:38.5]}
26. a4 {[%clk 0:04:12.1]} 26... e5 {[%clk 0:03:35.6]} 27. a5 {[%clk 0:04:11]}
27... Rc2 {[%clk 0:03:34.5]} 28. a6 {[%clk 0:04:09.4]} 28... e4 {[%clk
0:03:33.9]} 29. Re7 {[%clk 0:04:05.3]} 29... f5 {[%clk 0:03:30.1]} 30. a7 {[%clk
0:04:02.4]} 30... Ra2 {[%clk 0:03:29]} 31. Bc4 {[%clk 0:03:55.3]} 31... Ra5
{[%clk 0:03:26.7]} 32. Rxf7+ {[%clk 0:03:50.9]} 32... Kg6 {[%clk 0:03:26]} 33.
Rc7 {[%clk 0:03:46.6]} 1-0

[Event "Live Chess"]
[Site "Chess.com"]
[Date "2023.05.21"]
[Round "-"]
[White "Denz14"]
[Black "WombatIn_A_Box"]
[Result "1-0"]
[WhiteElo "1048"]
[BlackElo "554"]
[TimeControl "300"]
[EndTime "2:51:06 PDT"]
[Termination "Denz14 won by checkmate"]

1. d4 {[%clk 0:04:57.1]} 1... Nc6 {[%clk 0:04:56.3]} 2. Nf3 {[%clk 0:04:46.4]}
2... d5 {[%clk 0:04:54]} 3. Bf4 {[%clk 0:04:44.9]} 3... Nf6 {[%clk 0:04:51.9]}
4. e3 {[%clk 0:04:43.9]} 4... e5 {[%clk 0:04:49.2]} 5. dxe5 {[%clk 0:04:42.6]}
5... Ne4 {[%clk 0:04:44]} 6. Bd3 {[%clk 0:04:35.1]} 6... f5 {[%clk 0:04:33.5]}
7. exf6 {[%clk 0:04:31.9]} 7... Qxf6 {[%clk 0:04:29.3]} 8. Bxe4 {[%clk 0:04:27]}
8... Bd6 {[%clk 0:04:23.3]} 9. Bxd6 {[%clk 0:04:20.2]} 9... cxd6 {[%clk
0:04:23.2]} 10. Qd4 {[%clk 0:04:06.7]} 10... Nxd4 {[%clk 0:04:19.8]} 11. Nxd4
{[%clk 0:04:04.8]} 11... O-O {[%clk 0:04:10]} 12. Bxd5+ {[%clk 0:04:02.1]} 12...
Kh8 {[%clk 0:04:06.4]} 13. O-O {[%clk 0:03:59.1]} 13... Re8 {[%clk 0:04:05.5]}
14. c3 {[%clk 0:03:56.6]} 14... Re5 {[%clk 0:04:00.4]} 15. Bf3 {[%clk
0:03:51.1]} 15... g5 {[%clk 0:03:49.4]} 16. Nd2 {[%clk 0:03:41.9]} 16... g4
{[%clk 0:03:48.3]} 17. Be2 {[%clk 0:03:36.4]} 17... Rg5 {[%clk 0:03:43.1]} 18.
Ne4 {[%clk 0:03:31.3]} 18... Qg6 {[%clk 0:03:36.1]} 19. Nxg5 {[%clk 0:03:24]}
19... Qxg5 {[%clk 0:03:35.6]} 20. Rad1 {[%clk 0:03:12.4]} 20... Bd7 {[%clk
0:03:34.7]} 21. b3 {[%clk 0:02:57.2]} 21... Rg8 {[%clk 0:03:33.5]} 22. c4 {[%clk
0:02:51.6]} 22... g3 {[%clk 0:03:32.1]} 23. fxg3 {[%clk 0:02:49.8]} 23... h5
{[%clk 0:03:30]} 24. Rf4 {[%clk 0:02:40]} 24... Kg7 {[%clk 0:02:52.5]} 25. Rdf1
{[%clk 0:02:36.2]} 25... Bc6 {[%clk 0:02:48.6]} 26. Rf7+ {[%clk 0:02:27]} 26...
Kg6 {[%clk 0:02:43.4]} 27. Ne6 {[%clk 0:02:13]} 27... Qe5 {[%clk 0:02:33.9]} 28.
Nf4+ {[%clk 0:02:02.8]} 28... Kxf7 {[%clk 0:02:30]} 29. Nd3+ {[%clk 0:01:59.8]}
29... Qf6 {[%clk 0:02:14.5]} 30. Bxh5+ {[%clk 0:01:55.6]} 30... Rg6 {[%clk
0:02:11.1]} 31. Bxg6+ {[%clk 0:01:51.4]} 31... Kxg6 {[%clk 0:02:10.1]} 32. Rxf6+
{[%clk 0:01:45.8]} 32... Kxf6 {[%clk 0:02:09]} 33. Kf2 {[%clk 0:01:39.9]} 33...
Be4 {[%clk 0:02:07.2]} 34. Nc1 {[%clk 0:01:35.6]} 34... Bb1 {[%clk 0:02:05.5]}
35. a4 {[%clk 0:01:32.8]} 35... Ke6 {[%clk 0:02:03.5]} 36. Ke2 {[%clk
0:01:31.4]} 36... Kd7 {[%clk 0:02:02.1]} 37. Nd3 {[%clk 0:01:18.9]} 37... Ba2
{[%clk 0:01:55]} 38. Nc1 {[%clk 0:01:17.2]} 38... Bb1 {[%clk 0:01:50.4]} 39. e4
{[%clk 0:01:16.2]} 39... Kc6 {[%clk 0:01:48.8]} 40. Ke3 {[%clk 0:01:14.1]} 40...
Kc5 {[%clk 0:01:43.4]} 41. g4 {[%clk 0:01:11.9]} 41... Kb4 {[%clk 0:01:41.9]}
42. g5 {[%clk 0:01:11.1]} 42... d5 {[%clk 0:01:34.1]} 43. cxd5 {[%clk
0:00:56.7]} 43... Kc5 {[%clk 0:01:25.2]} 44. g6 {[%clk 0:00:55.1]} 44... Kd6
{[%clk 0:01:23.8]} 45. g7 {[%clk 0:00:54.2]} 45... Ke5 {[%clk 0:01:22.6]} 46.
g8=Q {[%clk 0:00:52.2]} 46... Bxe4 {[%clk 0:01:21.8]} 47. Qg7+ {[%clk
0:00:49.8]} 47... Kxd5 {[%clk 0:01:19.9]} 48. Qd4+ {[%clk 0:00:46.1]} 48... Ke6
{[%clk 0:01:15.7]} 49. Qxe4+ {[%clk 0:00:45.1]} 49... Kd6 {[%clk 0:01:14.6]} 50.
Nd3 {[%clk 0:00:42.7]} 50... b6 {[%clk 0:01:12.9]} 51. Qf4+ {[%clk 0:00:41.6]}
51... Kc6 {[%clk 0:01:11.7]} 52. g4 {[%clk 0:00:41.5]} 52... a5 {[%clk
0:01:10.6]} 53. Qd4 {[%clk 0:00:41.4]} 53... Kb7 {[%clk 0:01:09]} 54. g5 {[%clk
0:00:40.5]} 54... Ka6 {[%clk 0:01:08.1]} 55. g6 {[%clk 0:00:40.3]} 55... b5
{[%clk 0:01:05.6]} 56. g7 {[%clk 0:00:40.2]} 56... bxa4 {[%clk 0:01:04.6]} 57.
bxa4 {[%clk 0:00:39.5]} 57... Kb7 {[%clk 0:01:02.6]} 58. g8=Q {[%clk 0:00:38.1]}
58... Ka6 {[%clk 0:01:01.7]} 59. Qg6+ {[%clk 0:00:36.9]} 59... Kb7 {[%clk
0:01:00.4]} 60. Qdg7+ {[%clk 0:00:35.2]} 60... Ka8 {[%clk 0:00:58]} 61. Qe8#
{[%clk 0:00:35.1]} 1-0

[Event "Live Chess"]
[Site "Chess.com"]
[Date "2023.05.21"]
[Round "-"]
[White "wot-not"]
[Black "worldchessleaguelive"]
[Result "0-1"]
[WhiteElo "1547"]
[BlackElo "1358"]
[TimeControl "300"]
[EndTime "2:51:08 PDT"]
[Termination "worldchessleaguelive won by checkmate"]

1. e4 {[%clk 0:04:56]} 1... d5 {[%clk 0:04:59.1]} 2. e5 {[%clk 0:04:54]} 2...
Nc6 {[%clk 0:04:57.4]} 3. f4 {[%clk 0:04:49.3]} 3... Bf5 {[%clk 0:04:51.6]} 4.
Nf3 {[%clk 0:04:39.1]} 4... Qd7 {[%clk 0:04:46.9]} 5. d4 {[%clk 0:04:26.4]} 5...
a6 {[%clk 0:04:43.8]} 6. c3 {[%clk 0:04:24.3]} 6... O-O-O {[%clk 0:04:40.2]} 7.
Be2 {[%clk 0:04:22]} 7... h6 {[%clk 0:04:37.7]} 8. b4 {[%clk 0:04:20]} 8... Be4
{[%clk 0:04:33.5]} 9. Nbd2 {[%clk 0:04:17.6]} 9... f5 {[%clk 0:04:30.5]} 10. b5
{[%clk 0:04:14.3]} 10... Nb8 {[%clk 0:04:24.7]} 11. bxa6 {[%clk 0:04:11.4]}
11... Nxa6 {[%clk 0:04:19.9]} 12. Bxa6 {[%clk 0:04:09.7]} 12... bxa6 {[%clk
0:04:18.3]} 13. Qe2 {[%clk 0:04:08.7]} 13... Qb5 {[%clk 0:04:15.4]} 14. c4
{[%clk 0:04:00.4]} 14... dxc4 {[%clk 0:04:11.3]} 15. O-O {[%clk 0:03:58.5]}
15... c3 {[%clk 0:04:06.9]} 16. Nc4 {[%clk 0:03:50.1]} 16... e6 {[%clk
0:03:46.8]} 17. a4 {[%clk 0:03:47.5]} 17... Qc6 {[%clk 0:03:40.9]} 18. Ba3
{[%clk 0:03:33]} 18... Bxa3 {[%clk 0:03:31.2]} 19. Nxa3 {[%clk 0:03:31.9]} 19...
Bxf3 {[%clk 0:03:25.9]} 20. Rxf3 {[%clk 0:03:28.7]} 20... Rxd4 {[%clk
0:03:20.9]} 21. Rc1 {[%clk 0:03:21.3]} 21... Qxa4 {[%clk 0:03:04.3]} 22. Rfxc3
{[%clk 0:03:19.6]} 22... Rd7 {[%clk 0:02:47.5]} 23. Nc4 {[%clk 0:03:12]} 23...
Kd8 {[%clk 0:02:21.6]} 24. Qf3 {[%clk 0:02:35.2]} 24... Ne7 {[%clk 0:01:58.5]}
25. Qa8+ {[%clk 0:02:33.3]} 25... Nc8 {[%clk 0:01:57.4]} 26. Kh1 {[%clk
0:02:13.8]} 26... Rd1+ {[%clk 0:01:49.7]} 27. Rxd1+ {[%clk 0:01:59]} 27... Qxd1#
{[%clk 0:01:48.1]} 0-1

[Event "Live Chess"]
[Site "Chess.com"]
[Date "2023.05.21"]
[Round "-"]
[White "JoshMcK"]
[Black "LiamBellwood"]
[Result "0-1"]
[WhiteElo "1519"]
[BlackElo "1973"]
[TimeControl "300"]
[EndTime "2:51:11 PDT"]
[Termination "LiamBellwood won by resignation"]

1. e4 {[%clk 0:04:58.4]} 1... e6 {[%clk 0:04:59.9]} 2. d4 {[%clk 0:04:56.2]}
2... d5 {[%clk 0:04:59.8]} 3. Nc3 {[%clk 0:04:55.4]} 3... Nf6 {[%clk 0:04:58.8]}
4. e5 {[%clk 0:04:54.7]} 4... Ng8 {[%clk 0:04:54.2]} 5. f4 {[%clk 0:04:52.7]}
5... c5 {[%clk 0:04:51.5]} 6. Nf3 {[%clk 0:04:51.4]} 6... Nc6 {[%clk 0:04:51.4]}
7. Be3 {[%clk 0:04:49.4]} 7... Nh6 {[%clk 0:04:45.3]} 8. Be2 {[%clk 0:04:46.1]}
8... Nf5 {[%clk 0:04:43.9]} 9. Bf2 {[%clk 0:04:42.3]} 9... Qb6 {[%clk
0:04:43.5]} 10. b3 {[%clk 0:04:32.2]} 10... cxd4 {[%clk 0:04:37.2]} 11. Na4
{[%clk 0:04:25.6]} 11... Qa5+ {[%clk 0:04:27.4]} 12. Qd2 {[%clk 0:04:18.3]}
12... Bb4 {[%clk 0:04:25.6]} 0-1

[Event "Live Chess"]
[Site "Chess.com"]
[Date "2023.05.21"]
[Round "-"]
[White "gmnorfolk"]
[Black "Mikhail_Golubev"]
[Result "1/2-1/2"]
[WhiteElo "2121"]
[BlackElo "2461"]
[TimeControl "300"]
[EndTime "2:51:27 PDT"]
[Termination "Game drawn by repetition"]

1. d4 {[%clk 0:04:57.6]} 1... Nf6 {[%clk 0:04:56.1]} 2. c4 {[%clk 0:04:51.7]}
2... g6 {[%clk 0:04:55.1]} 3. Nc3 {[%clk 0:04:50.1]} 3... Bg7 {[%clk 0:04:54]}
4. e4 {[%clk 0:04:48.6]} 4... d6 {[%clk 0:04:52.8]} 5. Be2 {[%clk 0:04:48.2]}
5... O-O {[%clk 0:04:44.9]} 6. Be3 {[%clk 0:04:47.1]} 6... c5 {[%clk 0:04:39.8]}
7. d5 {[%clk 0:04:44.1]} 7... e6 {[%clk 0:04:36.3]} 8. Nf3 {[%clk 0:04:40.9]}
8... exd5 {[%clk 0:04:31.8]} 9. cxd5 {[%clk 0:04:39.3]} 9... b5 {[%clk
0:04:28.8]} 10. Bxb5 {[%clk 0:04:24.4]} 10... Nxe4 {[%clk 0:04:26.4]} 11. Nxe4
{[%clk 0:04:04.9]} 11... Qa5+ {[%clk 0:04:23.8]} 12. Qd2 {[%clk 0:04:03.8]}
12... Qxb5 {[%clk 0:04:20.3]} 13. Nxd6 {[%clk 0:04:02.8]} 13... Qxb2 {[%clk
0:04:02.2]} 14. Qxb2 {[%clk 0:03:12.6]} 14... Bxb2 {[%clk 0:04:02.1]} 15. Rb1
{[%clk 0:03:00.4]} 15... Bc3+ {[%clk 0:03:59.7]} 16. Nd2 {[%clk 0:02:54.3]}
16... Ba6 {[%clk 0:03:40.2]} 17. Rb3 {[%clk 0:02:37.7]} 17... Bb4 {[%clk
0:03:03.7]} 18. a3 {[%clk 0:02:30.1]} 18... Ba5 {[%clk 0:03:01.9]} 19. Bxc5
{[%clk 0:02:00.6]} 19... Nd7 {[%clk 0:03:00.7]} 20. Bb4 {[%clk 0:01:55.5]} 20...
Bxb4 {[%clk 0:02:50.2]} 21. axb4 {[%clk 0:01:49.8]} 21... Rfd8 {[%clk
0:02:32.9]} 22. Ra3 {[%clk 0:01:27.9]} 22... Nb6 {[%clk 0:02:08.3]} 23. N6e4
{[%clk 0:00:57.8]} 23... Bb7 {[%clk 0:01:59.3]} 24. d6 {[%clk 0:00:47.3]} 24...
Bxe4 {[%clk 0:01:42.9]} 25. Nxe4 {[%clk 0:00:43.3]} 25... f5 {[%clk 0:01:12.5]}
26. Nc5 {[%clk 0:00:34.3]} 26... Nc4 {[%clk 0:01:00.6]} 27. Rd3 {[%clk
0:00:19.5]} 27... Rxd6 {[%clk 0:00:45.8]} 28. Rxd6 {[%clk 0:00:17.8]} 28... Nxd6
{[%clk 0:00:45.7]} 29. Kd2 {[%clk 0:00:16.9]} 29... Rb8 {[%clk 0:00:41.6]} 30.
Kc3 {[%clk 0:00:15.9]} 30... Re8 {[%clk 0:00:23.1]} 31. Rd1 {[%clk 0:00:14]}
31... Nb5+ {[%clk 0:00:20.2]} 32. Kc4 {[%clk 0:00:12.6]} 32... Na3+ {[%clk
0:00:18.9]} 33. Kb3 {[%clk 0:00:11.1]} 33... Nb5 {[%clk 0:00:17.8]} 34. Kc4
{[%clk 0:00:10.3]} 34... Rb8 {[%clk 0:00:10.9]} 35. Rd7 {[%clk 0:00:08.3]} 35...
Na3+ {[%clk 0:00:05.8]} 36. Kb3 {[%clk 0:00:07.1]} 36... Nb5 {[%clk 0:00:05.3]}
37. Kc4 {[%clk 0:00:06.4]} 37... Na3+ {[%clk 0:00:04.3]} 38. Kb3 {[%clk
0:00:05.1]} 38... Nb5 {[%clk 0:00:03]} 39. Kc4 {[%clk 0:00:04.4]} 1/2-1/2

[Event "Live Chess"]
[Site "Chess.com"]
[Date "2023.05.21"]
[Round "-"]
[White "wadsy27"]
[Black "Ferrarifan27"]
[Result "0-1"]
[WhiteElo "2555"]
[BlackElo "2112"]
[TimeControl "300"]
[EndTime "2:51:37 PDT"]
[Termination "Ferrarifan27 won by checkmate"]

1. c4 {[%clk 0:04:57.8]} 1... Nf6 {[%clk 0:04:58.1]} 2. g3 {[%clk 0:04:55.9]}
2... e5 {[%clk 0:04:55.4]} 3. Bg2 {[%clk 0:04:55.2]} 3... Bc5 {[%clk 0:04:49.9]}
4. Nc3 {[%clk 0:04:53.1]} 4... O-O {[%clk 0:04:45.8]} 5. Nf3 {[%clk 0:04:48.9]}
5... d6 {[%clk 0:04:42.8]} 6. d3 {[%clk 0:04:46.7]} 6... Nc6 {[%clk 0:04:40.9]}
7. O-O {[%clk 0:04:45.1]} 7... a6 {[%clk 0:04:39.1]} 8. a3 {[%clk 0:04:43.6]}
8... Bg4 {[%clk 0:04:32.9]} 9. b4 {[%clk 0:04:36.1]} 9... Ba7 {[%clk 0:04:31.3]}
10. h3 {[%clk 0:04:32.8]} 10... Be6 {[%clk 0:04:26.2]} 11. Bg5 {[%clk
0:04:28.7]} 11... h6 {[%clk 0:04:24]} 12. Bh4 {[%clk 0:04:27.7]} 12... g5 {[%clk
0:04:22.1]} 13. Nxg5 {[%clk 0:04:26.9]} 13... hxg5 {[%clk 0:04:21.2]} 14. Bxg5
{[%clk 0:04:26.8]} 14... Kg7 {[%clk 0:04:00.1]} 15. Ne4 {[%clk 0:04:21.5]} 15...
Nxe4 {[%clk 0:03:54]} 16. Bxd8 {[%clk 0:04:19.4]} 16... Nxf2 {[%clk 0:03:53.1]}
17. Rxf2 {[%clk 0:04:14.6]} 17... Bxf2+ {[%clk 0:03:49.5]} 18. Kxf2 {[%clk
0:04:13.5]} 18... Raxd8 {[%clk 0:03:48.5]} 19. Bxc6 {[%clk 0:04:05.9]} 19...
bxc6 {[%clk 0:03:48.4]} 20. Qd2 {[%clk 0:04:02.5]} 20... f6 {[%clk 0:03:45.6]}
21. h4 {[%clk 0:03:58.9]} 21... Rg8 {[%clk 0:03:40.6]} 22. Rh1 {[%clk
0:03:55.3]} 22... Kf7 {[%clk 0:03:39.2]} 23. h5 {[%clk 0:03:53.3]} 23... Ke7
{[%clk 0:03:35.9]} 24. Qe3 {[%clk 0:03:51.3]} 24... Rg5 {[%clk 0:03:28.9]} 25.
h6 {[%clk 0:03:49.5]} 25... Rdg8 {[%clk 0:03:23.3]} 26. h7 {[%clk 0:03:48.4]}
26... Rh8 {[%clk 0:03:22.6]} 27. Qa7 {[%clk 0:03:47.4]} 27... Kd7 {[%clk
0:03:20.8]} 28. Qxa6 {[%clk 0:03:44.2]} 28... Rg7 {[%clk 0:03:19.5]} 29. b5
{[%clk 0:03:43.1]} 29... Rhxh7 {[%clk 0:03:10.9]} 30. Qxc6+ {[%clk 0:03:40.5]}
30... Kd8 {[%clk 0:03:08.8]} 31. Rxh7 {[%clk 0:03:39.9]} 31... Rxh7 {[%clk
0:03:07.4]} 32. b6 {[%clk 0:03:38.7]} 32... cxb6 {[%clk 0:02:40.2]} 33. Qxd6+
{[%clk 0:03:37.2]} 33... Bd7 {[%clk 0:02:38.5]} 34. Qxf6+ {[%clk 0:03:36.3]}
34... Re7 {[%clk 0:02:35.6]} 35. Qxb6+ {[%clk 0:03:34.5]} 35... Ke8 {[%clk
0:02:34.4]} 36. c5 {[%clk 0:03:33.5]} 36... Kf7 {[%clk 0:02:33.1]} 37. c6 {[%clk
0:03:32.4]} 37... Bg4 {[%clk 0:02:26]} 38. Qd8 {[%clk 0:03:30.3]} 38... Re6
{[%clk 0:02:23.5]} 39. c7 {[%clk 0:03:25.6]} 39... Rf6+ {[%clk 0:02:22.5]} 40.
Ke3 {[%clk 0:03:23.6]} 40... Rc6 {[%clk 0:02:21.1]} 41. a4 {[%clk 0:03:22.9]}
41... Rc2 {[%clk 0:02:15.3]} 42. a5 {[%clk 0:02:37.4]} 42... Rxe2# {[%clk
0:02:13.9]} 0-1

[Event "Live Chess"]
[Site "Chess.com"]
[Date "2023.05.21"]
[Round "-"]
[White "Purple1szed"]
[Black "VovaOvchar1990"]
[Result "1-0"]
[WhiteElo "1824"]
[BlackElo "1222"]
[TimeControl "300"]
[EndTime "2:51:40 PDT"]
[Termination "Purple1szed won by resignation"]

1. e4 {[%clk 0:04:58.8]} 1... e5 {[%clk 0:04:57.9]} 2. Nf3 {[%clk 0:04:57.8]}
2... Nc6 {[%clk 0:04:56.9]} 3. Bc4 {[%clk 0:04:57.3]} 3... Bc5 {[%clk
0:04:55.6]} 4. c3 {[%clk 0:04:56.6]} 4... Nf6 {[%clk 0:04:54.4]} 5. d4 {[%clk
0:04:56.4]} 5... exd4 {[%clk 0:04:53.4]} 6. e5 {[%clk 0:04:56.3]} 6... Ng4
{[%clk 0:04:37.4]} 7. cxd4 {[%clk 0:04:55.3]} 7... Bb4+ {[%clk 0:04:30.2]} 8.
Nbd2 {[%clk 0:04:50.4]} 8... O-O {[%clk 0:04:25.1]} 9. O-O {[%clk 0:04:49.4]}
9... d6 {[%clk 0:04:14.8]} 10. h3 {[%clk 0:04:48.5]} 10... Nh6 {[%clk
0:04:11.6]} 11. a3 {[%clk 0:04:47.5]} 11... Ba5 {[%clk 0:04:06.4]} 12. Nb3
{[%clk 0:04:34.3]} 12... dxe5 {[%clk 0:03:54.4]} 13. Nxa5 {[%clk 0:04:21.2]}
13... Nxa5 {[%clk 0:03:49.5]} 14. Nxe5 {[%clk 0:04:18.4]} 14... Nf5 {[%clk
0:03:41.3]} 15. Ba2 {[%clk 0:03:44.2]} 15... Nxd4 {[%clk 0:03:36.7]} 16. Be3
{[%clk 0:03:32.5]} 16... Nf5 {[%clk 0:03:14.9]} 17. Bxf7+ {[%clk 0:03:26.6]}
17... Rxf7 {[%clk 0:03:04.6]} 18. Qxd8+ {[%clk 0:03:25.1]} 1-0

[Event "Live Chess"]
[Site "Chess.com"]
[Date "2023.05.21"]
[Round "-"]
[White "Richardallis"]
[Black "JanMur7"]
[Result "0-1"]
[WhiteElo "1865"]
[BlackElo "1974"]
[TimeControl "300"]
[EndTime "2:51:52 PDT"]
[Termination "JanMur7 won by resignation"]

1. d4 {[%clk 0:04:57]} 1... Nf6 {[%clk 0:04:58.4]} 2. Nf3 {[%clk 0:04:56.2]}
2... e6 {[%clk 0:04:50.1]} 3. Bg5 {[%clk 0:04:55.4]} 3... Be7 {[%clk 0:04:49]}
4. Nbd2 {[%clk 0:04:54.8]} 4... h6 {[%clk 0:04:47.8]} 5. Bxf6 {[%clk 0:04:53.6]}
5... Bxf6 {[%clk 0:04:47.7]} 6. e4 {[%clk 0:04:53]} 6... O-O {[%clk 0:04:47.1]}
7. c3 {[%clk 0:04:51.5]} 7... b6 {[%clk 0:04:44.7]} 8. Bd3 {[%clk 0:04:50.1]}
8... d6 {[%clk 0:04:43.4]} 9. O-O {[%clk 0:04:47.3]} 9... Bb7 {[%clk 0:04:42.6]}
10. Qe2 {[%clk 0:04:46]} 10... Nd7 {[%clk 0:04:41.6]} 11. e5 {[%clk 0:04:43.4]}
11... dxe5 {[%clk 0:04:40.2]} 12. dxe5 {[%clk 0:04:42.7]} 12... Bg5 {[%clk
0:04:37.8]} 13. Nxg5 {[%clk 0:04:40.3]} 13... Qxg5 {[%clk 0:04:35.7]} 14. f4
{[%clk 0:04:38.1]} 14... Qe7 {[%clk 0:04:33.2]} 15. Rad1 {[%clk 0:04:36.1]}
15... Nc5 {[%clk 0:04:32.1]} 16. Bb1 {[%clk 0:04:34.4]} 16... a5 {[%clk
0:04:29.1]} 17. b4 {[%clk 0:04:30.9]} 17... axb4 {[%clk 0:04:23.3]} 18. cxb4
{[%clk 0:04:30.2]} 18... Ba6 {[%clk 0:04:22.1]} 19. Nc4 {[%clk 0:04:20.6]} 19...
Nd7 {[%clk 0:04:01.3]} 20. Qd3 {[%clk 0:04:17.5]} 20... g6 {[%clk 0:03:58.5]}
21. a4 {[%clk 0:04:13.1]} 21... Qxb4 {[%clk 0:03:49.1]} 22. Qxd7 {[%clk
0:04:09.2]} 22... Bxc4 {[%clk 0:03:40.7]} 23. Rf2 {[%clk 0:04:01.1]} 23... Rxa4
{[%clk 0:03:34.1]} 24. Qxc7 {[%clk 0:03:52.7]} 24... Bd5 {[%clk 0:03:09.3]} 25.
Bc2 {[%clk 0:03:33.3]} 25... Ra2 {[%clk 0:02:06.5]} 26. f5 {[%clk 0:03:30.6]}
26... gxf5 {[%clk 0:01:21.9]} 27. Bxf5 {[%clk 0:02:51.6]} 27... Rxf2 {[%clk
0:01:15.3]} 28. Kxf2 {[%clk 0:02:47.5]} 28... Qf4+ {[%clk 0:01:13]} 0-1

[Event "Live Chess"]
[Site "Chess.com"]
[Date "2023.05.21"]
[Round "-"]
[White "hturner40"]
[Black "Tech_Titan"]
[Result "1-0"]
[WhiteElo "1816"]
[BlackElo "1107"]
[TimeControl "300"]
[EndTime "2:51:52 PDT"]
[Termination "hturner40 won by resignation"]

1. Nf3 {[%clk 0:04:58]} 1... d5 {[%clk 0:04:33.9]} 2. g3 {[%clk 0:04:55.7]} 2...
Nc6 {[%clk 0:04:30.3]} 3. d4 {[%clk 0:04:53.2]} 3... Nf6 {[%clk 0:04:25.3]} 4.
Bg2 {[%clk 0:04:51.4]} 4... Bg4 {[%clk 0:04:13.1]} 5. O-O {[%clk 0:04:47.4]}
5... e6 {[%clk 0:04:11.1]} 6. c4 {[%clk 0:04:43]} 6... Bd6 {[%clk 0:04:06.4]} 7.
Nc3 {[%clk 0:04:27.9]} 7... O-O {[%clk 0:04:02.1]} 8. Bg5 {[%clk 0:04:22.8]}
8... h6 {[%clk 0:04:00.4]} 9. Bxf6 {[%clk 0:04:17.6]} 9... Qxf6 {[%clk
0:04:00.3]} 10. cxd5 {[%clk 0:04:15.9]} 10... exd5 {[%clk 0:03:58.1]} 11. Nxd5
{[%clk 0:04:14]} 11... Qe6 {[%clk 0:03:48]} 12. Ne3 {[%clk 0:04:05.3]} 12...
Bxf3 {[%clk 0:03:34.5]} 13. Bxf3 {[%clk 0:03:57.2]} 13... Qf6 {[%clk 0:03:30.4]}
14. d5 {[%clk 0:03:47.2]} 14... Nd4 {[%clk 0:03:27.7]} 15. Bg2 {[%clk
0:03:43.2]} 15... Rfe8 {[%clk 0:03:10.6]} 16. Ng4 {[%clk 0:03:40]} 16... Qg5
{[%clk 0:02:49.1]} 17. Qxd4 {[%clk 0:03:36.9]} 1-0